[Event "46th GRE-chT Premier 2018"]
[Site "Rio Achaia"]
[Date "2018.07.11"]
[Round "3"]
[White "Samaridis, Konstantinos"]
[Black "Bebis, Epaminondas-Alexand"]
[Result "1-0"]
[ECO "A10"]
[WhiteElo "2103"]
[BlackElo "1554"]
[Annotator "NA"]
[PlyCount "61"]
[EventDate "2018.07.10"]
[EventType "team-tourn"]
[EventCountry "GRE"]
[SourceTitle "playchess.com"]
[Source "ChessBase"]
[SourceQuality "1"]
[TimeControl "40/5400+30:1800+30"]

1. c4 {[%emt 0:00:18]} f5 {[%emt 0:03:17]} 2. Nc3 {[%emt 0:02:33]} Nf6 {[%emt 0:00:32]} 3. g3 {[%emt 0:01:20]} Nc6 {[%emt 0:10:08]} 4. Bg2 {[%emt 0:00:50]} e5 {[%emt 0:06:45]} 5. d3 {[%emt 0:01:45]} Bc5 {[%emt 0:04:21]} 6. e3 {[%emt 0:01:04]} O-O {[%emt 0:02:27]} 7. Nge2 {[%emt 0:00:04]} d6 {[%emt 0:02:46]} 8. O-O {[%emt 0:00:22]} Qe8 {[%emt 0:03:12]} 9. d4 {[%emt 0:07:31]} Bb6 {[%emt 0:03:19]} 10. Rb1 {[%emt 0:08:40]} a6 {[%emt 0:10:48]} 11. b4 {[%emt 0:01:13]} Kh8 {[%emt 0:04:35]} 12. c5 {[%emt 0:01:56]} Ba7 {[%emt 0:00:51]} 13. a4 {[%emt 0:07:57]} Ne7 {[%emt 0:04:34]} 14. Ba3 {[%emt 0:05:44]} e4 {[%emt 0:02:00]} 15. b5 {[%emt 0:00:22]} d5 {[%emt 0:01:34]} 16. a5 {[%emt 0:09:12]} g5 {[%emt 0:06:06]} 17. c6 {[%emt 0:05:22]} bxc6 {[%emt 0:02:17]} 18. b6 {[%emt 0:00:14]} cxb6 {[%emt 0:01:44]} 19. axb6 {[%emt 0:00:08]} Bxb6 {[%emt 0:06:19]} 20. Rxb6 {[%emt 0:00:11]} Rf7 {[%emt 0:01:26]} 21. Bxe7 {[%emt 0:07:03]} Rxe7 {[%emt 0:00:21]} 22. Qa4 {[%emt 0:00:46]} Re6 {[%emt 0:03:09]} 23. Rfb1 {[%emt 0:07:10]} h5 {[%emt 0:03:36]} 24. h4 {[%emt 0:05:55]} gxh4 {[%emt 0:09:12]} 25. Nf4 {[%emt 0:00:23]} Rd6 {[%emt 0:00:10]} 26. gxh4 {[%emt 0:04:24]} Bd7 {[%emt 0:02:49]} 27. Qb4 {[%emt 0:00:21]} c5 {[%emt 0:00:51]} 28. dxc5 {[%emt 0:00:51]} Rxb6 {[%emt 0:00:21]} 29. cxb6 {[%emt 0:00:32]} Bc6 {[%emt 0:03:03]} 30. Qd4 {[%emt 0:00:09]} Qd8 {[%emt 0:01:19]} 31. Nxh5 {[%emt 0:00:23]} 1-0

[Event "46th GRE-chT Premier 2018"]
[Site "Rio Achaia"]
[Date "2018.07.11"]
[Round "3"]
[White "Lagopatis, Nikolaos"]
[Black "Kalodoukas, Odysseas"]
[Result "1-0"]
[ECO "B18"]
[WhiteElo "2100"]
[BlackElo "2089"]
[Annotator "NA"]
[PlyCount "95"]
[EventDate "2018.07.10"]
[EventType "team-tourn"]
[EventCountry "GRE"]
[SourceTitle "playchess.com"]
[Source "ChessBase"]
[SourceQuality "1"]
[TimeControl "40/5400+30:1800+30"]

1. e4 {[%emt 0:01:34]} c6 {[%emt 0:00:31]} 2. d4 {[%emt 0:02:23]} d5 {[%emt 0:00:06]} 3. Nd2 {[%emt 0:00:27]} dxe4 {[%emt 0:00:18]} 4. Nxe4 {[%emt 0:00:13]} Bf5 {[%emt 0:00:09]} 5. Qf3 {[%emt 0:00:59]} e6 {[%emt 0:04:01]} 6. c3 {[%emt 0:01:30]} Be7 {[%emt 0:10:02]} 7. Bd3 {[%emt 0:03:57]} Bg6 {[%emt 0:00:17]} 8. Ne2 {[%emt 0:01:15]} Nf6 {[%emt 0:00:54]} 9. N2g3 {[%emt 0:03:05]} Nbd7 {[%emt 0:01:56]} 10. Bf4 {[%emt 0:04:32]} Nxe4 {[%emt 0:00:52]} 11. Nxe4 {[%emt 0:00:55]} Nf6 {[%emt 0:00:20]} 12. Nxf6+ {[%emt 0:07:00]} Bxf6 {[%emt 0:00:09]} 13. O-O-O {[%emt 0:00:56]} Bg5 {[%emt 0:09:57]} 14. h4 {[%emt 0:07:00]} Bxf4+ {[%emt 0:01:32]} 15. Qxf4 {[%emt 0:00:15]} Qd7 {[%emt 0:06:10]} 16. Qg5 {[%emt 0:16:24]} Qe7 {[%emt 0:19:21]} 17. Qe5 {[%emt 0:07:35]} Rg8 {[%emt 0:06:53]} 18. Qa5 {[%emt 0:07:14]} Qd8 {[%emt 0:01:45]} 19. Qa4 {[%emt 0:04:51]} Qd7 {[%emt 0:12:54]} 20. Rhe1 {[%emt 0:05:01]} Bxd3 {[%emt 0:04:08]} 21. Rxd3 {[%emt 0:00:09]} a6 {[%emt 0:01:36]} 22. Qa5 {[%emt 0:03:21]} Qd5 {[%emt 0:03:40]} 23. Qc7 {[%emt 0:03:02]} Qd7 {[%emt 0:03:33]} 24. Qb6 {[%emt 0:01:25]} Rc8 {[%emt 0:00:43]} 25. Re5 {[%emt 0:05:28]} Qc7 {[%emt 0:01:29]} 26. Qb3 {[%emt 0:01:08]} Ke7 {[%emt 0:08:32]} 27. Rde3 {[%emt 0:02:55]} Qd6 {[%emt 0:00:54]} 28. Qxb7+ {[%emt 0:01:11]} Rc7 {[%emt 0:00:02]} 29. Qxa6 {[%emt 0:00:42]} Rb8 {[%emt 0:00:06]} 30. Qc4 {[%emt 0:01:32]} Rcb7 {[%emt 0:00:19]} 31. b4 {[%emt 0:01:06]} Ra8 {[%emt 0:01:25]} 32. Re2 {[%emt 0:01:50]} Rba7 {[%emt 0:00:20]} 33. Kb1 {[%emt 0:00:39]} Ra3 {[%emt 0:00:32]} 34. f4 {[%emt 0:01:21]} g6 {[%emt 0:00:17]} 35. g4 {[%emt 0:00:24]} Kf8 {[%emt 0:01:02]} 36. f5 {[%emt 0:00:44]} exf5 {[%emt 0:00:11]} 37. gxf5 {[%emt 0:00:14]} Qf6 {[%emt 0:00:10]} 38. Qc5+ {[%emt 0:02:18]} Kg7 {[%emt 0:00:18]} 39. R5e3 {[%emt 0:00:48]} Qxh4 {[%emt 0:01:13]} 40. Qxc6 {[%emt 0:00:00]} R3a6 {[%emt 0:00:00]} 41. Qd5 {[%emt 0:03:18]} R8a7 {[%emt 0:13:23]} 42. fxg6 {[%emt 0:10:16]} hxg6 {[%emt 0:00:53]} 43. Re8 {[%emt 0:02:35]} Rf6 {[%emt 0:10:57]} 44. Qc5 {[%emt 0:04:19]} Rf1+ {[%emt 0:00:20]} 45. Kb2 {[%emt 0:00:31]} Rd7 {[%emt 0:01:02]} 46. Qf8+ {[%emt 0:03:29]} Kf6 {[%emt 0:00:07]} 47. R8e6+ {[%emt 0:00:39]} Kg5 {[%emt 0:01:31]} 48. Rg2+ {[%emt 0:04:33]} 1-0

[Event "46th GRE-chT Premier 2018"]
[Site "Rio Achaia"]
[Date "2018.07.11"]
[Round "3"]
[White "Manelidis, Savvas"]
[Black "Benatsis, Alexandros"]
[Result "1-0"]
[ECO "B01"]
[WhiteElo "2090"]
[BlackElo "1669"]
[Annotator "NA"]
[PlyCount "93"]
[EventDate "2018.07.10"]
[EventType "team-tourn"]
[EventCountry "GRE"]
[SourceTitle "playchess.com"]
[Source "ChessBase"]
[SourceQuality "1"]
[TimeControl "40/5400+30:1800+30"]

1. e4 {[%emt 0:00:00]} d5 {[%emt 0:00:00]} 2. exd5 {[%emt 0:00:00]} Nf6 {[%emt 0:00:00]} 3. Bb5+ {[%emt 0:00:04]} Bd7 {[%emt 0:00:12]} 4. Be2 {[%emt 0:00:24]} Nxd5 {[%emt 0:00:32]} 5. d4 {[%emt 0:00:08]} Bf5 {[%emt 0:02:07]} 6. Nf3 {[%emt 0:01:01]} e6 {[%emt 0:02:16]} 7. a3 {[%emt 0:00:40]} Be7 {[%emt 0:00:35]} 8. c4 {[%emt 0:00:29]} Nb6 {[%emt 0:00:50]} 9. O-O {[%emt 0:02:37]} Bg4 {[%emt 0:00:35]} 10. Be3 {[%emt 0:05:01]} Nc6 {[%emt 0:01:25]} 11. b3 {[%emt 0:01:15]} Bf6 {[%emt 0:01:40]} 12. Nc3 {[%emt 0:02:05]} a5 {[%emt 0:07:15]} 13. Ne4 {[%emt 0:07:07]} Be7 {[%emt 0:01:35]} 14. h3 {[%emt 0:19:19]} Bf5 {[%emt 0:03:34]} 15. Ng3 {[%emt 0:02:35]} Bg6 {[%emt 0:00:48]} 16. d5 {[%emt 0:06:59]} exd5 {[%emt 0:00:32]} 17. Bxb6 {[%emt 0:00:08]} cxb6 {[%emt 0:00:21]} 18. cxd5 {[%emt 0:00:06]} Na7 {[%emt 0:03:32]} 19. Ne5 {[%emt 0:04:44]} O-O {[%emt 0:04:30]} 20. f4 {[%emt 0:14:10]} Bf6 {[%emt 0:03:01]} 21. Rc1 {[%emt 0:01:00]} Bxe5 {[%emt 0:00:30]} 22. fxe5 {[%emt 0:00:16]} Qg5 {[%emt 0:00:30]} 23. Bg4 {[%emt 0:14:34]} Qe3+ {[%emt 0:02:10]} 24. Kh2 {[%emt 0:00:01]} Qxe5 {[%emt 0:00:11]} 25. a4 {[%emt 0:09:05]} Rad8 {[%emt 0:07:20]} 26. Bf3 {[%emt 0:00:13]} Nc8 {[%emt 0:01:04]} 27. Qe1 {[%emt 0:01:54]} Qd6 {[%emt 0:03:52]} 28. Kh1 {[%emt 0:02:05]} Rfe8 {[%emt 0:03:27]} 29. Qf2 {[%emt 0:02:07]} Re5 {[%emt 0:09:14]} 30. Rfe1 {[%emt 0:01:42]} Rde8 {[%emt 0:01:57]} 31. Rxe5 {[%emt 0:01:44]} Qxe5 {[%emt 0:00:15]} 32. Qe2 {[%emt 0:01:37]} Qxe2 {[%emt 0:04:26]} 33. Nxe2 {[%emt 0:00:02]} Nd6 {[%emt 0:00:56]} 34. Rc7 {[%emt 0:01:01]} Bf5 {[%emt 0:03:04]} 35. Nd4 {[%emt 0:00:21]} Be4 {[%emt 0:12:44]} 36. Rd7 {[%emt 0:00:23]} Bxf3 {[%emt 0:04:32]} 37. Nxf3 {[%emt 0:00:01]} Ne4 {[%emt 0:04:57]} 38. Rxb7 {[%emt 0:00:27]} f5 {[%emt 0:00:08]} 39. Rxb6 {[%emt 0:00:42]} f4 {[%emt 0:00:09]} 40. h4 {[%emt 0:00:00]} Rc8 {[%emt 0:00:00]} 41. Ng5 {[%emt 0:08:20]} Ng3+ {[%emt 0:07:54]} 42. Kh2 {[%emt 0:00:26]} h6 {[%emt 0:00:25]} 43. Ne6 {[%emt 0:01:43]} h5 {[%emt 0:01:58]} 44. Rc6 {[%emt 0:02:30]} Rb8 {[%emt 0:00:40]} 45. d6 {[%emt 0:01:24]} Rxb3 {[%emt 0:00:44]} 46. d7 {[%emt 0:00:17]} Nf1+ {[%emt 0:01:16]} 47. Kg1 {[%emt 0:00:12]} 1-0

[Event "46th GRE-chT Premier 2018"]
[Site "Rio Achaia"]
[Date "2018.07.11"]
[Round "3"]
[White "Serpetsidakis, Nikolaos"]
[Black "Paraskevas, Georgios"]
[Result "1-0"]
[ECO "D37"]
[WhiteElo "2087"]
[BlackElo "1634"]
[Annotator "NA"]
[PlyCount "65"]
[EventDate "2018.07.10"]
[EventType "team-tourn"]
[EventCountry "GRE"]
[SourceTitle "playchess.com"]
[Source "ChessBase"]
[SourceQuality "1"]
[TimeControl "40/5400+30:1800+30"]

1. d4 {[%emt 0:00:56]} d5 {[%emt 0:00:00]} 2. c4 {[%emt 0:00:05]} e6 {[%emt 0:00:00]} 3. Nc3 {[%emt 0:00:02]} Nf6 {[%emt 0:00:00]} 4. Nf3 {[%emt 0:05:15]} Be7 {[%emt 0:02:07]} 5. Bf4 {[%emt 0:00:08]} O-O {[%emt 0:00:43]} 6. e3 {[%emt 0:00:05]} b6 {[%emt 0:01:17]} 7. h3 {[%emt 0:00:35]} a6 {[%emt 0:00:27]} 8. cxd5 {[%emt 0:01:53]} exd5 {[%emt 0:00:26]} 9. Bd3 {[%emt 0:00:13]} h6 {[%emt 0:00:51]} 10. O-O {[%emt 0:00:08]} Be6 {[%emt 0:00:12]} 11. Qe2 {[%emt 0:05:01]} c5 {[%emt 0:01:16]} 12. Ne5 {[%emt 0:03:35]} c4 {[%emt 0:05:12]} 13. Bc2 {[%emt 0:02:48]} b5 14. a3 Nfd7 15. Rad1 Nxe5 16. dxe5 b4 {[%emt 0:14:29]} 17. axb4 {[%emt 0:12:58]} Bxb4 {[%emt 0:00:27]} 18. Nxd5 {[%emt 0:02:38]} Bxd5 {[%emt 0:00:15]} 19. e4 {[%emt 0:00:07]} Be6 {[%emt 0:00:01]} 20. Rxd8 {[%emt 0:00:09]} Rxd8 {[%emt 0:00:01]} 21. Ba4 {[%emt 0:01:08]} Nd7 {[%emt 0:07:42]} 22. Bc6 {[%emt 0:04:12]} Rab8 {[%emt 0:01:20]} 23. Bd5 {[%emt 0:00:19]} Nb6 {[%emt 0:00:06]} 24. Bxe6 {[%emt 0:00:29]} fxe6 {[%emt 0:00:01]} 25. Qg4 {[%emt 0:00:25]} Kf7 {[%emt 0:00:28]} 26. Qh5+ {[%emt 0:00:10]} g6 {[%emt 0:02:55]} 27. Qxh6 {[%emt 0:00:06]} Rh8 {[%emt 0:00:03]} 28. Qg5 {[%emt 0:00:04]} Be7 {[%emt 0:00:01]} 29. Qg3 {[%emt 0:00:26]} Na4 {[%emt 0:00:27]} 30. Bg5 {[%emt 0:01:49]} Rhf8 {[%emt 0:03:11]} 31. Bxe7 {[%emt 0:00:10]} Kxe7 {[%emt 0:00:01]} 32. Qa3+ {[%emt 0:00:02]} Kf7 {[%emt 0:01:37]} 33. Qxa4 1-0

[Event "46th GRE-chT Premier 2018"]
[Site "Rio Achaia"]
[Date "2018.07.11"]
[Round "3"]
[White "Zisiadis, Dimitrios"]
[Black "Patrelakis, Evaggelos"]
[Result "0-1"]
[ECO "A05"]
[WhiteElo "2075"]
[BlackElo "2285"]
[Annotator "NA"]
[PlyCount "54"]
[EventDate "2018.07.10"]
[EventType "team-tourn"]
[EventCountry "GRE"]
[SourceTitle "playchess.com"]
[Source "ChessBase"]
[SourceQuality "1"]
[TimeControl "40/5400+30:1800+30"]

1. Nf3 {[%emt 0:00:00]} Nf6 {[%emt 0:00:00]} 2. g3 {[%emt 0:00:00]} g6 {[%emt 0:00:00]} 3. Bg2 {[%emt 0:00:00]} Bg7 {[%emt 0:00:00]} 4. O-O {[%emt 0:00:00]} d6 {[%emt 0:00:02]} 5. c4 {[%emt 0:01:56]} O-O {[%emt 0:00:07]} 6. Nc3 {[%emt 0:00:06]} e5 {[%emt 0:00:14]} 7. d3 {[%emt 0:01:13]} c6 {[%emt 0:02:18]} 8. Rb1 {[%emt 0:01:38]} Re8 {[%emt 0:00:41]} 9. b4 {[%emt 0:09:49]} d5 {[%emt 0:03:42]} 10. cxd5 {[%emt 0:04:00]} cxd5 {[%emt 0:00:22]} 11. Bg5 {[%emt 0:02:01]} h6 {[%emt 0:02:32]} 12. Bxf6 {[%emt 0:02:25]} Bxf6 {[%emt 0:00:02]} 13. e4 {[%emt 0:00:52]} dxe4 {[%emt 0:06:03]} 14. dxe4 {[%emt 0:00:55]} Nc6 {[%emt 0:16:54]} 15. Nd5 {[%emt 0:02:41]} Be6 {[%emt 0:10:27]} 16. Nxf6+ {[%emt 0:21:30]} Qxf6 {[%emt 0:00:03]} 17. Qd2 {[%emt 0:01:35]} Kg7 {[%emt 0:09:03]} 18. b5 {[%emt 0:03:00]} Red8 {[%emt 0:01:21]} 19. Qe3 {[%emt 0:05:39]} Nd4 {[%emt 0:01:30]} 20. Nxd4 {[%emt 0:03:53]} exd4 {[%emt 0:03:02]} 21. Qd2 {[%emt 0:03:14]} d3 {[%emt 0:03:40]} 22. f4 {[%emt 0:02:38]} Qd4+ {[%emt 0:04:46]} 23. Kh1 {[%emt 0:12:59]} Rac8 {[%emt 0:01:21]} 24. Rb4 {[%emt 0:01:28]} Qc3 {[%emt 0:06:20]} 25. Rb2 {[%emt 0:00:06]} Qxd2 {[%emt 0:00:14]} 26. Rxd2 {[%emt 0:03:45]} Rc2 27. Rfd1 Bg4 {[%emt 0:01:16]} 0-1

[Event "46th GRE-chT Premier 2018"]
[Site "Rio Achaia"]
[Date "2018.07.11"]
[Round "3"]
[White "Fragkos, Vasilios"]
[Black "Vasiliadis, Anastasios"]
[Result "1/2-1/2"]
[ECO "A40"]
[WhiteElo "2066"]
[BlackElo "1997"]
[Annotator "NA"]
[PlyCount "79"]
[EventDate "2018.07.10"]
[EventType "team-tourn"]
[EventCountry "GRE"]
[SourceTitle "playchess.com"]
[Source "ChessBase"]
[SourceQuality "1"]
[TimeControl "40/5400+30:1800+30"]

1. d4 {[%emt 0:01:36]} Nf6 {[%emt 0:00:00]} 2. c4 {[%emt 0:02:15]} e6 {[%emt 0:00:00]} 3. g3 {[%emt 0:00:13]} Bb4+ {[%emt 0:01:32]} 4. Bd2 {[%emt 0:00:05]} Qe7 {[%emt 0:00:14]} 5. Bg2 {[%emt 0:00:16]} O-O {[%emt 0:00:10]} 6. e4 {[%emt 0:10:33]} Bxd2+ {[%emt 0:03:11]} 7. Qxd2 {[%emt 0:01:49]} d6 {[%emt 0:00:09]} 8. Nc3 {[%emt 0:02:38]} e5 {[%emt 0:03:59]} 9. dxe5 {[%emt 0:08:40]} dxe5 {[%emt 0:00:07]} 10. Nge2 {[%emt 0:05:30]} c6 {[%emt 0:13:23]} 11. Rd1 {[%emt 0:03:58]} Be6 {[%emt 0:00:09]} 12. b3 {[%emt 0:00:04]} Na6 {[%emt 0:00:11]} 13. O-O {[%emt 0:03:37]} Rfd8 {[%emt 0:04:17]} 14. Qg5 {[%emt 0:03:30]} Bg4 {[%emt 0:08:04]} 15. f3 {[%emt 0:00:07]} Bh5 {[%emt 0:01:19]} 16. Qe3 {[%emt 0:06:49]} Qc5 {[%emt 0:02:06]} 17. Kf2 {[%emt 0:00:06]} h6 {[%emt 0:09:20]} 18. Qxc5 {[%emt 0:05:32]} Nxc5 {[%emt 0:00:00]} 19. Ke3 {[%emt 0:00:23]} Kf8 {[%emt 0:02:24]} 20. Bh3 {[%emt 0:07:28]} Ke7 {[%emt 0:05:16]} 21. Bf5 {[%emt 0:05:40]} g6 {[%emt 0:06:03]} 22. Bh3 {[%emt 0:02:29]} g5 {[%emt 0:00:09]} 23. Bf5 {[%emt 0:03:45]} Bg6 {[%emt 0:00:17]} 24. Bxg6 {[%emt 0:03:42]} fxg6 {[%emt 0:00:08]} 25. h3 {[%emt 0:01:00]} Rxd1 {[%emt 0:08:49]} 26. Rxd1 {[%emt 0:00:01]} Rd8 {[%emt 0:01:08]} 27. Rxd8 {[%emt 0:00:59]} Kxd8 {[%emt 0:00:07]} 28. f4 {[%emt 0:03:50]} gxf4+ {[%emt 0:03:42]} 29. gxf4 {[%emt 0:00:06]} exf4+ {[%emt 0:00:40]} 30. Nxf4 {[%emt 0:03:54]} g5 {[%emt 0:00:14]} 31. Nfe2 {[%emt 0:04:10]} Ne6 {[%emt 0:05:04]} 32. e5 {[%emt 0:00:44]} Nd7 {[%emt 0:01:21]} 33. Ke4 {[%emt 0:03:30]} Ke7 {[%emt 0:02:15]} 34. Kf5 {[%emt 0:06:05]} Kf7 {[%emt 0:00:21]} 35. b4 {[%emt 0:00:52]} Nb6 {[%emt 0:03:51]} 36. c5 {[%emt 0:00:02]} Nc4 {[%emt 0:03:20]} 37. Ke4 {[%emt 0:00:01]} Nd2+ {[%emt 0:01:20]} 38. Ke3 {[%emt 0:00:18]} Nc4+ {[%emt 0:00:08]} 39. Ke4 {[%emt 0:00:04]} Nd2+ {[%emt 0:00:20]} 40. Ke3 {[%emt 0:00:00]} 1/2-1/2

[Event "46th GRE-chT Premier 2018"]
[Site "Rio Achaia"]
[Date "2018.07.11"]
[Round "3"]
[White "Rousis, Mihail"]
[Black "Balokas, Dimitrios"]
[Result "1/2-1/2"]
[ECO "B13"]
[WhiteElo "2048"]
[BlackElo "2259"]
[Annotator "NA"]
[PlyCount "60"]
[EventDate "2018.07.10"]
[EventType "team-tourn"]
[EventCountry "GRE"]
[SourceTitle "playchess.com"]
[Source "ChessBase"]
[SourceQuality "1"]
[TimeControl "40/5400+30:1800+30"]

1. e4 {[%emt 0:00:00]} c6 {[%emt 0:00:02]} 2. d4 {[%emt 0:00:00]} d5 {[%emt 0:00:06]} 3. exd5 {[%emt 0:00:00]} cxd5 {[%emt 0:00:05]} 4. Bd3 {[%emt 0:00:15]} Nc6 {[%emt 0:01:11]} 5. c3 {[%emt 0:00:06]} Nf6 {[%emt 0:00:06]} 6. Bf4 {[%emt 0:00:08]} g6 {[%emt 0:00:10]} 7. h3 {[%emt 0:00:41]} Bg7 {[%emt 0:00:44]} 8. Nd2 {[%emt 0:02:01]} O-O {[%emt 0:03:21]} 9. Ngf3 {[%emt 0:00:12]} Nd7 {[%emt 0:15:27]} 10. O-O {[%emt 0:07:22]} e5 {[%emt 0:00:12]} 11. dxe5 {[%emt 0:00:16]} Ndxe5 {[%emt 0:00:17]} 12. Bc2 {[%emt 0:01:21]} Nxf3+ {[%emt 0:11:57]} 13. Nxf3 {[%emt 0:06:45]} d4 {[%emt 0:00:59]} 14. Bg5 {[%emt 0:01:10]} Qb6 {[%emt 0:02:20]} 15. cxd4 {[%emt 0:11:38]} Nxd4 {[%emt 0:14:45]} 16. Nxd4 {[%emt 0:02:26]} Bxd4 {[%emt 0:00:13]} 17. Bb3 {[%emt 0:03:48]} Be6 {[%emt 0:09:12]} 18. Bxe6 {[%emt 0:02:23]} fxe6 {[%emt 0:00:29]} 19. Qe2 {[%emt 0:00:52]} Rf5 {[%emt 0:00:53]} 20. Be3 {[%emt 0:00:49]} Bxe3 {[%emt 0:05:46]} 21. Qxe3 {[%emt 0:00:10]} Qxe3 {[%emt 0:00:06]} 22. fxe3 {[%emt 0:00:04]} Rc8 {[%emt 0:01:17]} 23. Rad1 {[%emt 0:02:48]} Rc7 {[%emt 0:01:46]} 24. Rd2 {[%emt 0:01:37]} Rxf1+ {[%emt 0:03:03]} 25. Kxf1 {[%emt 0:01:37]} Kf7 {[%emt 0:00:10]} 26. Ke2 {[%emt 0:00:53]} Kf6 {[%emt 0:00:20]} 27. Kf3 {[%emt 0:01:28]} Ke5 {[%emt 0:00:55]} 28. Rd4 {[%emt 0:00:36]} Rf7+ {[%emt 0:01:51]} 29. Ke2 {[%emt 0:00:52]} Rc7 {[%emt 0:00:11]} 30. Kf3 {[%emt 0:01:44]} Rf7+ {[%emt 0:02:25] Ke4+} 1/2-1/2

[Event "46th GRE-chT Premier 2018"]
[Site "Rio Achaia"]
[Date "2018.07.11"]
[Round "3"]
[White "Skalkotas, Nikolaos"]
[Black "Tzintzios, Georgios"]
[Result "1-0"]
[ECO "D71"]
[WhiteElo "2044"]
[BlackElo "2186"]
[Annotator "NA"]
[PlyCount "115"]
[EventDate "2018.07.10"]
[EventType "team-tourn"]
[EventCountry "GRE"]
[SourceTitle "playchess.com"]
[Source "ChessBase"]
[SourceQuality "1"]
[TimeControl "40/5400+30:1800+30"]

1. d4 {[%emt 0:00:10]} Nf6 {[%emt 0:00:00]} 2. c4 {[%emt 0:00:08]} g6 {[%emt 0:00:00]} 3. g3 {[%emt 0:00:03]} Bg7 {[%emt 0:00:22]} 4. Bg2 {[%emt 0:00:04]} d5 {[%emt 0:00:09]} 5. cxd5 {[%emt 0:00:11]} Nxd5 {[%emt 0:00:05]} 6. Nc3 {[%emt 0:00:13]} Nxc3 {[%emt 0:01:27]} 7. bxc3 {[%emt 0:00:03]} O-O {[%emt 0:00:43]} 8. Rb1 {[%emt 0:05:54]} c5 {[%emt 0:05:13]} 9. Rxb7 {[%emt 0:08:09]} Bxb7 {[%emt 0:01:53]} 10. Bxb7 {[%emt 0:00:43]} Nd7 {[%emt 0:00:07]} 11. Bxa8 {[%emt 0:00:24]} Qxa8 {[%emt 0:00:05]} 12. Nf3 {[%emt 0:00:27]} e5 {[%emt 0:04:11]} 13. O-O {[%emt 0:02:52]} cxd4 {[%emt 0:00:39]} 14. cxd4 {[%emt 0:00:09]} e4 {[%emt 0:00:06]} 15. Nd2 {[%emt 0:04:48]} h5 {[%emt 0:04:09]} 16. e3 {[%emt 0:17:13]} Nf6 {[%emt 0:01:11]} 17. Ba3 {[%emt 0:05:19]} Re8 {[%emt 0:01:00]} 18. Nc4 {[%emt 0:00:20]} h4 {[%emt 0:02:21]} 19. Qe2 {[%emt 0:07:44]} Qd5 {[%emt 0:05:06]} 20. Rb1 {[%emt 0:02:54]} Rc8 {[%emt 0:01:52]} 21. Nd6 {[%emt 0:03:32]} Rc6 {[%emt 0:07:35]} 22. Rb8+ {[%emt 0:04:50]} Kh7 {[%emt 0:00:08]} 23. Rb5 {[%emt 0:00:06]} Qe6 {[%emt 0:16:38]} 24. Re5 {[%emt 0:00:19]} Qd7 {[%emt 0:01:17]} 25. Nxe4 {[%emt 0:02:36]} Nd5 {[%emt 0:11:40]} 26. Nc5 {[%emt 0:01:53]} Qd8 {[%emt 0:05:32]} 27. Qb5 {[%emt 0:11:05]} Bxe5 {[%emt 0:18:01]} 28. Qxc6 {[%emt 0:01:08]} hxg3 {[%emt 0:00:03]} 29. hxg3 {[%emt 0:00:48]} Bxg3 {[%emt 0:00:06]} 30. Ne4 {[%emt 0:06:23]} Bh4 {[%emt 0:01:15]} 31. Bd6 {[%emt 0:05:19]} Nf6 {[%emt 0:04:34]} 32. Bc7 {[%emt 0:04:12]} Qc8 {[%emt 0:00:10]} 33. Nxf6+ {[%emt 0:01:15]} Bxf6 {[%emt 0:00:02]} 34. Qxf6 {[%emt 0:00:28]} Qxc7 {[%emt 0:00:02]} 35. d5 {[%emt 0:01:37]} Qd7 {[%emt 0:01:12]} 36. d6 {[%emt 0:00:40]} Kg8 {[%emt 0:01:42]} 37. Kh2 {[%emt 0:01:24]} Qg4 {[%emt 0:01:21]} 38. f3 {[%emt 0:01:07]} Qb4 {[%emt 0:02:38]} 39. Kh3 {[%emt 0:01:41]} Qb6 {[%emt 0:01:20]} 40. Qe7 {[%emt 0:00:00]} Qc5 {[%emt 0:00:00]} 41. Kg3 {[%emt 0:04:12]} Kg7 {[%emt 0:02:33]} 42. f4 {[%emt 0:00:44]} Qc1 {[%emt 0:01:25]} 43. Qe5+ {[%emt 0:03:38]} Kh7 {[%emt 0:01:30]} 44. Kh4 {[%emt 0:01:32]} Qd2 {[%emt 0:05:02]} 45. a4 {[%emt 0:02:23]} f6 {[%emt 0:02:23]} 46. Qe7+ {[%emt 0:00:06]} Kh6 {[%emt 0:00:13]} 47. Qf8+ {[%emt 0:00:28]} Kh7 {[%emt 0:00:07]} 48. Qe7+ {[%emt 0:00:04]} Kh6 {[%emt 0:00:09]} 49. Kg3 {[%emt 0:00:10]} Qe1+ {[%emt 0:02:52]} 50. Kf3 {[%emt 0:00:07]} Qd1+ {[%emt 0:00:16]} 51. Ke4 {[%emt 0:00:30]} Qxa4+ {[%emt 0:00:33]} 52. Kd5 {[%emt 0:00:04]} Qb3+ {[%emt 0:08:54]} 53. Kc6 {[%emt 0:01:25]} Qb6+ {[%emt 0:02:47]} 54. Kd7 {[%emt 0:00:01]} Qb7+ {[%emt 0:09:29]} 55. Ke8 {[%emt 0:02:01]} Qc8+ {[%emt 0:01:25]} 56. Kf7 {[%emt 0:00:07]} Qc4+ {[%emt 0:01:28]} 57. Qe6 {[%emt 0:00:17]} Qd3 {[%emt 0:00:55]} 58. Qh3# {[%emt 0:00:07]} 1-0

[Event "46th GRE-chT Premier 2018"]
[Site "Rio Achaia"]
[Date "2018.07.11"]
[Round "3"]
[White "Gkogkas, Dimitrios"]
[Black "Vragoteris, Antonios"]
[Result "1/2-1/2"]
[ECO "A05"]
[WhiteElo "2038"]
[BlackElo "2160"]
[Annotator "NA"]
[PlyCount "56"]
[EventDate "2018.07.10"]
[EventType "team-tourn"]
[EventCountry "GRE"]
[SourceTitle "playchess.com"]
[Source "ChessBase"]
[SourceQuality "1"]
[TimeControl "40/5400+30:1800+30"]

1. Nf3 {[%emt 0:00:20]} Nf6 {[%emt 0:06:46]} 2. d4 {[%emt 0:04:01]} e6 {[%emt 0:03:12]} 3. g3 {[%emt 0:04:24]} c5 {[%emt 0:02:14]} 4. Bg2 {[%emt 0:02:40]} cxd4 {[%emt 0:00:17]} 5. Nxd4 {[%emt 0:00:41]} d5 {[%emt 0:00:18]} 6. O-O {[%emt 0:01:34]} e5 {[%emt 0:00:24]} 7. Nf3 {[%emt 0:05:48]} Nc6 {[%emt 0:01:18]} 8. b3 {[%emt 0:07:13]} h6 {[%emt 0:01:06]} 9. Bb2 {[%emt 0:01:17]} Bd6 {[%emt 0:00:21]} 10. c4 {[%emt 0:06:29]} d4 {[%emt 0:11:36]} 11. Na3 {[%emt 0:17:13]} a6 {[%emt 0:18:57]} 12. Rc1 {[%emt 0:04:56]} Qe7 {[%emt 0:01:21]} 13. Nc2 {[%emt 0:02:02]} Bf5 {[%emt 0:03:12]} 14. Ncxd4 {[%emt 0:05:59]} exd4 {[%emt 0:04:14]} 15. Nxd4 {[%emt 0:00:33]} Nxd4 {[%emt 0:00:34]} 16. Qxd4 {[%emt 0:00:16]} Rd8 {[%emt 0:15:45]} 17. Qb6 {[%emt 0:01:51]} Bc8 {[%emt 0:07:49]} 18. c5 {[%emt 0:11:09]} Bc7 {[%emt 0:01:31]} 19. Bxf6 {[%emt 0:01:03]} gxf6 {[%emt 0:00:59]} 20. Qb4 {[%emt 0:00:31]} b5 {[%emt 0:03:49]} 21. Rc3 {[%emt 0:02:15]} f5 {[%emt 0:03:38]} 22. Re3 {[%emt 0:02:25]} Be6 {[%emt 0:00:09]} 23. Qc3 {[%emt 0:01:53]} Rg8 {[%emt 0:00:22]} 24. Qb4 {[%emt 0:00:02]} Rh8 {[%emt 0:00:17]} 25. Qc3 {[%emt 0:00:03]} Rg8 {[%emt 0:00:06]} 26. Qb4 {[%emt 0:00:03]} Rh8 27. Qc3 {[%emt 0:00:08]} Rg8 {[%emt 0:01:09]} 28. Qb4 Rh8 1/2-1/2